Cogmind - Beta 16 @@@ ROGUE MODE // 2025.12.20 @ 03:34:59 Player: Red Box Result: Destroyed by D-53 Grenadier with Mini Grenade Launcher Performance ------------- Evolutions (0) 0 Regions Visited (4) 800 Robots Destroyed (22) 110 Value Destroyed (274) 274 Prototype IDs (31) 620 Alien Tech Used (0) 0 Bonus (385) 385 TOTAL SCORE: 2189 Bonus ------- Follower Combat Kills 85 Aligned with FarCom 300 Cogmind --------- Core Integrity 0/250 Matter 264/300 Energy 202/310 System Corruption 0% Temperature Cool (90) Movement Treading (880) Ox9 Location -9/Mines Parts ------- > --- POWER (1) -------- Heavy Deuterium Engine > --- PROPULSION (2) --- Improved Treads Improved Treads > --- UTILITY (2) ------ Humpback > --- WEAPON (2) ------- Spread Laser EMP Blaster > --- INVENTORY (35) --- Cold Fusion Reactor Reinforced Fission Core Improved Treads Improved Treads Advanced Myomer Leg Advanced Myomer Leg Wheel Compact Wheel Improved Heat Sink Experimental Heat Sink High-capacity Storage Unit Large Battery (200) High-capacity Matter Pod (200) Gravity Neutralizer Experimental Sensor Array Makeshift Terrain Scanner Modified TNC Experimental Core Analyzer Improved Armor Integrity Analyzer Advanced Weapon Cycler Advanced Transmission Jammer Improved System Guard Advanced Recalibrator Thief Drone Bay (3/3) PSU Rigger AS-neutralizer No. 17b Spread Laser Beamcaster Firepult 8R-AWN's Boregun 8R-AWN's Boregun Light Cannon Rocket Launcher Deploy-a-Sentry Peak State ------------ > --- POWER ------------ Reinforced Fission Core > --- PROPULSION ------- Improved Treads Compact Wheel > --- UTILITY ---------- High-capacity Storage Unit Thief Drone Bay > --- WEAPON ----------- 8R-AWN's Boregun 8R-AWN's Boregun > --- INVENTORY -------- Improved Treads Improved Treads Improved Treads Light Armor Plating Spread Laser Spread Laser Beamcaster EMP Blaster Rocket Launcher [Rating: 39] Favorites ----------- Power Ion Engine Engine Ion Engine Power Core Reinforced Fission Core Reactor Cold Fusion Reactor Propulsion Compact Wheel Treads Improved Treads Leg Aluminum Leg Wheel Compact Wheel Utility High-capacity Storage Unit Device Improved Terrain Scanner Storage High-capacity Storage Unit Protection Light Armor Plating Weapon Spread Laser Energy Gun Spread Laser Ballistic Gun 8R-AWN's Boregun Ballistic Cannon Light Cannon Launcher Rocket Launcher Special Weapon Mining Laser Build | -11 -10 -10 -10 -9 ------- Run | Yrd Mat Min Exi Min Slots Evolved . | . . . . . Power . | . . . . . Propulsion . | . . . . . Utility . | . . . . . Weapon . | . . . . . Parts Attached 38 | 7 12 3 15 1 Power 5 | 1 1 . 3 . Engine 3 | 1 1 . 1 . Core 1 | . . . 1 . Reactor 1 | . . . 1 . Propulsion 9 | 2 4 1 1 1 Treads 4 | . 2 1 . 1 Leg 3 | 2 . . 1 . Wheel 2 | . 2 . . . Hover . | . . . . . Flight . | . . . . . Utility 12 | 2 3 2 5 . Device 7 | 1 1 2 3 . Storage 4 | 1 2 . 1 . Processor . | . . . . . Hackware . | . . . . . Protection 1 | . . . 1 . Artifact . | . . . . . Weapon 12 | 2 4 . 6 . Energy Gun 6 | 2 3 . 1 . Energy Cannon . | . . . . . Ballistic Gun 2 | . . . 2 . Ballistic Cannon 1 | . . . 1 . Launcher 2 | . . . 2 . Special Weapon 1 | . 1 . . . Impact Weapon . | . . . . . Slashing Weapon . | . . . . . Piercing Weapon . | . . . . . Special Melee Weapon . | . . . . . Unidentified Prototypes 8 | . . 1 7 . Parts Lost . | . . . . . Power . | . . . . . Propulsion . | . . . . . Utility . | . . . . . Weapon . | . . . . . Highest Loss Streak . | . . . . . To Critical Strikes . | . . . . . Average Backups 17 | 5 14 19 19 33 Power 1 | . 1 1 2 2 Propulsion 4 | 3 3 4 4 6 Utility 6 | . 3 7 6 18 Weapon 6 | . 5 7 6 7 Tool/Special . | . . . . . Unused Backups 36 | . 2 2 14 18 Power 5 | . . . 5 . Propulsion 7 | . 1 . 3 3 Utility 18 | . . 1 4 13 Weapon 6 | . 1 1 2 2 Tool/Special . | . . . . . Average Slot Usage (%) 93 | . 100 100 87 85 Engine 12 | . 14 14 9 14 Reactor 1 | . . . 2 . Treads 9 | . 4 14 12 14 Leg 7 | . 19 . . . Wheel 10 | . 3 14 15 13 Device 9 | . 14 14 4 . Storage 13 | . 14 14 13 14 Protection 2 | . . . 6 . Energy Gun 22 | . 27 28 14 27 Launcher 1 | . . . 2 . Peak Build Rating 39 | 9 14 18 39 34 Average Rating 17 | 6 12 15 20 34 On Entrance 14 | . 9 14 16 34 Avg Prop Armor Cover (%) 12 | . 13 14 12 11 Naked Turns . | . . . . . Heaviest Build 218 | 13 52 52 218 217 Greatest Support 40 | 20 40 16 38 16 Greatest Overweight (x) 13 | 2 3 3 13 13 Average Overweight (x) 3 | . 1 3 4 13 Largest Inventory Capacity 35 | 8 20 20 35 35 Average Capacity 20 | 7 16 20 23 35 Most Carried 35 | 7 20 20 35 35 Average Carried 18 | 5 14 19 20 35 Final Capacity 35 | 8 20 20 35 35 Final Carried 35 | 7 20 19 35 35 Class Distribution -------------------- 83% | Mutant 16% | Hauler-Mutant Dominant Class ---------------- Mutant | -10/Materials Mutant | -10/Mines Mutant | -10/Exiles Hauler-Mutant | -9/Mines Resources | -11 -10 -10 -10 -9 ----------- Run | Yrd Mat Min Exi Min Matter Collected 1295 | 270 370 40 615 . Remotely . | . . . . . Salvage Created 619 | 206 250 63 80 20 Parts 44 | 19 18 5 1 1 Haulers Intercepted 2 | . 2 . . . Recyclers Shooed 1 | . . . . 1 Parts Field Recycled . | . . . . . Retrieved Matter . | . . . . . Parts Self-Destructed . | . . . . . Prevented . | . . . . . Parts Restored . | . . . . . Kills | -11 -10 -10 -10 -9 ------- Run | Yrd Mat Min Exi Min Combat Hostiles Destroyed 14 | . 6 4 4 . Guns 10 | . 6 4 . . AOE 4 | . . . 4 . Classes Destroyed 10 | 2 4 . 3 1 Worker 1 | . . . . 1 Tunneler 5 | 5 . . . . Hauler 2 | . 2 . . . Recycler 2 | 1 1 . . . Turret 1 | . . . 1 . Watcher 1 | . 1 . . . Swarmer 6 | . 3 3 . . Grunt 4 | . 3 1 . . Zionite 1 | . . . 1 . Assembled 4 | . . . 4 . Best Kill Streak 4 | 3 2 3 4 1 Combat Bots Only 4 | . 2 3 4 . Max Kills in Single Turn 2 | 1 1 1 2 1 Gunslinging . | . . . . . Exploded 2 | . . . 2 . Melee . | . . . . . Uniques/NPCs Destroyed 3 | . . . 3 . EX-HEX (-10/Exiles) EX-DEC (-10/Exiles) EX-BIN (-10/Exiles) Combat | -11 -10 -10 -10 -9 -------- Run | Yrd Mat Min Exi Min Hostile Shots Fired 50 | . 14 6 20 10 Missed 9 | . 3 . 5 1 Hits 41 | . 11 6 15 9 Projectile 41 | . 11 6 15 9 AOE 9 | . . . . 9 Damage Taken 838 | . 103 51 334 350 Core 251 | . 23 33 124 71 Absorbed by Shields . | . . . . . Regen/Repaired (Parts) 9 | . 9 . . . Core Remaining (%) 100 | 100 . . . . Volleys Fired 72 | 15 25 5 23 4 Largest 2 | 2 2 2 2 2 Hottest 130 | 100 130 130 60 98 Shots Fired 118 | 30 44 10 26 8 Gun 88 | 30 38 10 6 4 Cannon 2 | . . . 2 . Launcher 22 | . . . 18 4 Special 6 | . 6 . . . Kinetic 8 | . . . 8 . Thermal 88 | 30 44 10 . 4 Explosive 7 | . . . 7 . Electromagnetic 15 | . . . 11 4 Robot Hit Streak 13 | 4 11 13 2 3 Robot Miss Streak 7 | 3 7 2 2 4 Penetration Max . | . . . . . Secondary Targets 1 | . 1 . . . Max Gunslinging Chain 1 | . 1 . . . Shots Hit Robots 70 | 17 37 7 5 4 Core Hits 80 | 7 36 12 17 8 Critical Kills . | . . . . . Critical Parts Destroyed 1 | . . . 1 . Critical Strikes 1 | . . . 1 . Destroy 1 | . . . 1 . Melee Attacks . | . . . . . Impact . | . . . . . Slashing . | . . . . . Piercing . | . . . . . Sneak Attacks . | . . . . . Combat Hostiles . | . . . . . Follow-up Attacks . | . . . . . Damage Inflicted 1349 | 224 458 102 434 131 Guns 905 | 224 458 102 60 61 Cannons 17 | . . . 17 . Explosions 427 | . . . 357 70 Melee . | . . . . . Ramming . | . . . . . Kinetic 77 | . . . 77 . Thermal 845 | 224 458 102 . 61 Explosive 238 | . . . 238 . Electromagnetic 189 | . . . 119 70 Impact . | . . . . . Slashing . | . . . . . Piercing . | . . . . . Highest Corruption . | . . . . . Average Corruption . | . . . . . Corruption Purged . | . . . . . Corruption Blocked . | . . . . . Overload Shots . | . . . . . Overflow Damage . | . . . . . Projectiles . | . . . . . Explosions . | . . . . . Melee . | . . . . . Knockbacks . | . . . . . Impact . | . . . . . Kinetic . | . . . . . Secondary . | . . . . . Self-Inflicted Damage 19 | . . . 19 . Shots 2 | . . . 2 . Rammed . | . . . . . Targets Rammed . | . . . . . Kicked . | . . . . . Crushed . | . . . . . Highest Temperature 207 | 195 207 81 108 90 Average Temperature 63 | 72 70 39 40 40 Received Heat Transfer 30 | . 24 6 . . Siege Activations . | . . . . . Martial Activations . | . . . . . Shielding Activations . | . . . . . Robots Disrupted 1 | . . . 1 . Combat Hostiles . | . . . . . Robots Corrupted 1 | . . . 1 . Combat Hostiles . | . . . . . Parts Fried . | . . . . . Impact Corruptions . | . . . . . Robots Melted . | . . . . . Combat Hostiles . | . . . . . Parts Melted 2 | . 2 . . . Heat Transferred 1446 | 666 580 125 . 75 Parts Sabotaged . | . . . . . Parts Stolen . | . . . . . Parts Stripped . | . . . . . Power Chain Reactions . | . . . . . Alert | -11 -10 -10 -10 -9 ------- Run | Yrd Mat Min Exi Min Maximum Alert Level . | . . . . . Low Security (%) 100 | 100 100 100 . 100 Level 1 . | . . . . . Level 2 . | . . . . . Level 3 . | . . . . . Level 4 . | . . . . . Level 5 . | . . . . . High Security . | . . . . . Max Security . | . . . . . Peak Influence 133 | 10 133 98 . 5 Initial 45 | . . 45 . . Average 12 | 2 13 17 . . Influence Increases 484 | 30 285 164 . 5 Destroy 0b10 Robot/C 260 | . 120 140 . . Destroy 0b10 Robot/NC 55 | 30 20 . . 5 Destroy Leader 56 | . 36 20 . . Allied During Kill 4 | . . 4 . . Successful Hack 29 | . 29 . . . Select Force Hacks 60 | . 60 . . . Destroy Structure 5 | . 5 . . . Lose Combat Pursuer 15 | . 15 . . . Influence Decreases 484 | 30 168 213 68 5 Entered New Map 140 | . . 72 68 . Time Decay 324 | 30 168 121 . 5 Lost Ally 20 | . . 20 . . Squads Dispatched 3 | . 2 1 . . Investigation 2 | . 2 . . . Extermination . | . . . . . Reinforcement . | . . . . . Assault 1 | . . 1 . . Garrison . | . . . . . Intercept . | . . . . . Searches Triggered . | . . . . . Construction Impeded . | . . . . . Haulers Reinforced . | . . . . . Active Scanning Responses . | . . . . . Cargo Convoy Interrupts . | . . . . . Stealth | -11 -10 -10 -10 -9 --------- Run | Yrd Mat Min Exi Min Distress Signals 1 | . 1 . . . Communications Jammed . | . . . . . Distress Signals . | . . . . . Times Spotted 44 | . 9 10 22 3 Peak Tracking Total 9 | . 3 3 9 2 Tactical Retreats 8 | . 1 . 7 . Traps | -11 -10 -10 -10 -9 ------- Run | Yrd Mat Min Exi Min Traps Triggered . | . . . . . Indirectly . | . . . . . Trap Hack Attempts . | . . . . . Triggered . | . . . . . Disarmed . | . . . . . Reprogrammed . | . . . . . Reused . | . . . . . Traps Extracted . | . . . . . Installed . | . . . . . Triggered . | . . . . . Machines | -11 -10 -10 -10 -9 ---------- Run | Yrd Mat Min Exi Min Machines Disabled 7 | . . . 7 . Max in Single Turn 2 | . . . 2 . Machines Repaired . | . . . . . Machines Dismantled . | . . . . . Machines Sabotaged . | . . . . . Overloaded Fab Kills . | . . . . . Hacking | -11 -10 -10 -10 -9 --------- Run | Yrd Mat Min Exi Min Machines Accessed 14 | . 11 1 2 . Terminals 8 | . 8 . . . Fabricators . | . . . . . Repair Stations 1 | . 1 . . . Recycling Units 2 | . 2 . . . Scanalyzers . | . . . . . Garrison Access . | . . . . . Total Hacks 41 | . 36 1 4 . Successful 27 | . 22 1 4 . Failed 14 | . 14 . . . Catastrophic . | . . . . . Database Lockouts . | . . . . . Manual 25 | . 24 . 1 . Terminals 24 | . 24 . . . Fabricators . | . . . . . Repair Stations 2 | . 2 . . . Recycling Units 10 | . 10 . . . Scanalyzers . | . . . . . Garrison Access . | . . . . . Terminal Hacks 11 | . 6 1 4 . Record 3 | . . . 3 . Robot Analysis 4 | . 4 . . . Open Door 1 | . . 1 . . Locate Traps 2 | . 2 . . . Proto ID Catalog 1 | . . . 1 . Fabricator Hacks . | . . . . . Repair Station Hacks 2 | . 2 . . . Scan Component 1 | . 1 . . . Repair 1 | . 1 . . . Recycling Unit Hacks 2 | . 2 . . . Retrieve Components 2 | . 2 . . . Scanalyzer . | . . . . . Garrison Access Hacks . | . . . . . Unauthorized Hacks 12 | . 12 . . . Terminals 9 | . 9 . . . Botnet 3 | . 3 . . . Operators 1 | . 1 . . . Skim 5 | . 5 . . . Fabricators . | . . . . . Repair Stations . | . . . . . Recycling Units 3 | . 3 . . . Reject 1 | . 1 . . . Tunnel 2 | . 2 . . . Scanalyzers . | . . . . . Garrison Access . | . . . . . Data Cores Recovered . | . . . . . Used . | . . . . . Hacking Detections 10 | . 10 . . . Full Trace Events 1 | . 1 . . . Feedback Events . | . . . . . Feedback Blocked . | . . . . . Robot Schematics Acquired . | . . . . . Robots Built . | . . . . . Authchips . | . . . . . Time . | . . . . . Total Robot Build Rating . | . . . . . Part Schematics Acquired . | . . . . . Parts Built . | . . . . . Authchips . | . . . . . Time . | . . . . . Total Part Build Rating . | . . . . . Part Studies Acquired . | . . . . . Parts Repaired 1 | . 1 . . . Time 32 | . 32 . . . Parts Recycled . | . . . . . Recycled Matter . | . . . . . Retrieved Matter . | . . . . . Retrieved Components 6 | . 6 . . . Parts Scanalyzed . | . . . . . Part Schematics Acquired . | . . . . . Parts Damaged . | . . . . . Bothacking | -11 -10 -10 -10 -9 ------------ Run | Yrd Mat Min Exi Min Used RIF Installer . | . . . . . Robots Hacked . | . . . . . Non-combat . | . . . . . Combat . | . . . . . Robot Hacks Applied . | . . . . . Relay Couplers Released . | . . . . . Fabnet Peak Effective % . | . . . . . Robots Rewired . | . . . . . Allies Hacked . | . . . . . Hacks Repelled . | . . . . . Allies | -11 -10 -10 -10 -9 -------- Run | Yrd Mat Min Exi Min Total Allies 1 | . . 1 . . Largest Group 1 | . . 1 . . Highest-Rated Group 31 | . . 31 . . Highest-Rated Ally 31 | . . 31 . . Total Orders 2 | . . . 2 . RETURN 2 | . . . 2 . Ally Attacks 110 | . . 6 104 . Total Damage 664 | . . 84 580 . Kills 11 | . . 3 8 . Allies Corrupted . | . . . . . Allies Melted . | . . . . . Intel | -11 -10 -10 -10 -9 ------- Run | Yrd Mat Min Exi Min Active Infowar (turns) 2225 | 66 2159 . . . Terrain 2225 | 66 2159 . . . Robot Analysis Total 4 | . 4 . . . Derelict Logs Recovered 1 | . . 1 . . Drone Launches 23 | . . . 23 . Drone Recoveries 23 | . . . 23 . Exploration | -11 -10 -10 -10 -9 ------------- Run | Yrd Mat Min Exi Min Turns Passed 6261 | 160 2375 900 2406 420 Spaces Moved 3254 | 83 1169 580 1284 138 Core 16 | 16 . . . . Treads 32 | . 32 . . . Legs 815 | 67 748 . . . Wheels 2391 | . 389 580 1284 138 Hover . | . . . . . Flight . | . . . . . Fastest Speed 50 | 50 120 145 100 295 Average Speed 169 | 117 175 145 164 295 Slowest Speed 320 | 150 320 145 295 295 Overloaded Moves . | . . . . . Propulsion Burnouts . | . . . . . Robots Hopped . | . . . . . Potential Cave-ins . | . . . . . Cave-ins Triggered . | . . . . . Exploration Rate (%) 67 | 5 99 97 91 44 Regions Visited 4 Branch Regions 3 Pre-discovered Areas 3 | . 2 . 1 . Known Exits Taken 1 | . 1 . . . Unknown Exits Taken 3 | 1 . 1 1 . Scrap Searched 4 | . . 3 . 1 Spaces Dug 5 | . 5 . . . Terrain Destroyed 42 | . 5 . 37 . Melee . | . . . . . Projectile 6 | . 5 . 1 . AOE 36 | . . . 36 . Terrain Rammed . | . . . . . Walls Destroyed . | . . . . . Machines Disabled . | . . . . . Actions | -11 -10 -10 -10 -9 --------- Run | Yrd Mat Min Exi Min Total 3883 | 111 1432 631 1565 144 Wait 357 | . 192 31 134 . Move 3250 | 82 1168 579 1283 138 Hop . | . . . . . Pick Up 86 | 7 20 5 54 . Fast Attach 11 | 7 2 . 2 . Attach 13 | . 2 . 11 . Detach 6 | . . . 6 . Swap 31 | . 13 4 12 2 Drop 57 | . 10 7 40 . Fire 72 | 15 25 5 23 4 Melee . | . . . . . Ram . | . . . . . Kick . | . . . . . Crush . | . . . . . Escape Stasis . | . . . . . Rewire . | . . . . . Trap . | . . . . . Miscellaneous . | . . . . . Route ------- -11/Scrapyard -10/Materials (discovered 6 exits: *Mat x3 / *Min x2 / *Sub) -10/Mines (discovered 4 exits: *Mat x2 / *Exi / *Sub) -10/Exiles -9/Mines (discovered 1 exit: [*Mat]) History --------- Turn | Location | Event 23 | -11/Scrapyard | Discovered new exit (range 15) 161 | -11/Scrapyard | Entered Materials 294 | -10/Materials | Discovered new exit (range 4) 298 | -10/Materials | Met 8R-AWN 317 | -10/Materials | Build established: Mutant 322 | -10/Materials | Discovered new exit (range 6) 458 | -10/Materials | Discovered new exit (range 16) 967 | -10/Materials | Discovered new exit (range 13) 1079 | -10/Materials | Discovered new exit (range 10) 1389 | -10/Materials | Loaded intel: 13 trap records 1438 | -10/Materials | Identified exit to Mines 1445 | -10/Materials | Discovered new exit (range 13) 1477 | -10/Materials | Learned 4 Subcaves zone layouts 1505 | -10/Materials | Learned 2 Mines zone layouts 1523 | -10/Materials | Learned location of 2 exits from Materials 1544 | -10/Materials | Learned location of 1 exit from Recycling 1567 | -10/Materials | Learned location of 2 exits from Materials 2226 | -10/Materials | Repaired Spread Laser 2536 | -10/Materials | Entered Mines 2537 | -10/Mines | Identified exit to Materials 2537 | -10/Mines | Identified exit to Subcaves 2537 | -10/Mines | Followed 8R-AWN into the Mines 2617 | -10/Mines | Met a Derelict bent on vengeance 2650 | -10/Mines | Discovered new exit (range 5) 2710 | -10/Mines | Learned Materials trap positions 2735 | -10/Mines | Found the Drone Emporium 2744 | -10/Mines | Found Prototype Device 2745 | -10/Mines | Identified Thief Drone Bay 2791 | -10/Mines | Found a damaged Exp. Sensor Array with a note attached 2796 | -10/Mines | Found Prototype Device 3181 | -10/Mines | Met a Derelict testing a Signal Generator 3191 | -10/Mines | Found Signal Generator 3436 | -10/Mines | Entered Exiles 3472 | -10/Exiles | Welcomed by 8R-AWN 3498 | -10/Exiles | Met EX-HEX 3549 | -10/Exiles | Met EX-DEC 3625 | -10/Exiles | Discovered new exit (range 14) 3969 | -10/Exiles | Met EX-BIN 3985 | -10/Exiles | Aligned with FarCom system 3986 | -10/Exiles | Given EX-Vault access code 4020 | -10/Exiles | Opened EX-Vault 4028 | -10/Exiles | Found PSU Rigger 4034 | -10/Exiles | Found Modified TNC 4064 | -10/Exiles | Warned to stay clear of 0b10 Research branches 4112 | -10/Exiles | Learned location of Zion (-7) 4329 | -10/Exiles | Found Firepult 4420 | -10/Exiles | Attacked by the Exiles 4590 | -10/Exiles | Found Prototype Device 4593 | -10/Exiles | Identified AS-neutralizer No. 17b 4641 | -10/Exiles | Found 8R-AWN's Boregun 4798 | -10/Exiles | Core integrity fell below 50% 4914 | -10/Exiles | Found 8R-AWN's Boregun 4948 | -10/Exiles | Allies destroyed EX-HEX 4959 | -10/Exiles | Allies destroyed EX-DEC 4983 | -10/Exiles | Allies destroyed EX-BIN 5026 | -10/Exiles | Found Prototype Processor 5029 | -10/Exiles | Found Deploy-a-Sentry 5516 | -10/Exiles | Build established: Hauler-Mutant 5842 | -10/Exiles | Stole four prototypes: Modified TNC, PSU Rigger, Firepult, Deploy-a-Sentry 5842 | -10/Exiles | Entered Mines 6040 | -9/Mines | Discovered new exit (range 13) 6215 | -9/Mines | Assembled infested the area 6258 | -9/Mines | Core integrity fell below 20% 6262 | -9/Mines | Destroyed by D-53 Grenadier with Mini Grenade Launcher Last Messages --------------- 05854_ Found 69 Matter. 05854_ Found Com. Wheel. 05854_ Found Field Recycling Unit. 05854_ Found EM Pulse Gun. 05854_ Found 45 Matter. 06027_ K-01 Serf collects debris. 06029_ A derelict is hurriedly installing traps. 06031_ RQ-5I8(g): "Hehe, this'll put a wrench in their mining defense operations..." 06031_ RQ-5I8(g) slips into the shadows. 06031_ K-01 Serf collects debris. 06040_ EXIT=FOUND 06043_ K-01 Serf collects debris. 06215_ ALERT: Infestation in the mines, dispatching Demolisher response squad. 06252_ C-45 Heavy ARC bursts open, deploying its payload. 06252_ D-53 Grenadier unfolds itself. 06252_ T-07 Excavator destroyed. 06259_ K-01 Serf destroyed. Map ----- +----------------------------------------------------+ | ???????????????????# #??? ##???????????????????? | | ???????????????????# #??? ##??????????????????? | | ???????????????????# #??? #??????????????????? | | ???????????????????# #??? #??????????????????? | | ???????????????????# #??? #??????????????????? | | ???????????????????# #??? #??????????????????? | | ???????????????????# #### #???????????????????? | | ???????????????????# ## #???????????????????? | | ??????????????????## ##??????????????????? | | ??????????????????# ####???????????????? | | ??????????????????# ##??????????????? | | ??????????????????## ####???????????? | | ???????????????????###%= ?????????? | | ?????????????????????## ?????????? | | ???????????????????### """ ####????????????? | | ???????????????????# # """ #???????????????? | | ???????????????????# % """ #??????????? | | ??????????????????## r! #??????????????? | | ??????????????????? ## #??????????????? | | ???????????????????# d #?# ##??????????????? | | ???????????????????# #### ##???????????????? | | ???????????????????# #####????????????????? | | ???????????????????## d ##??????????????????? | | ????????????????????# #??????????????????? | | ????????????????????# ####???????????????? | | ????????????????????# @ #???????????????? | | ????????????????????# #??????????????? | | ????????????????????# #??????????????? | | ????????????????????## #?????????????? | | ?????????????????????## ## ???????????? | | ??????????????????????### ##?? ??????????? | | ????????????????????????# #????# ??????????? | | ????????????????????????# #?????? ??????????? | | ????????????????????????# #???????? ???????????? | | ?????????????????????????# ##????????????????????? | | ??????????????????????????##?????????????????????? | | ?????????????????????????????????????????????????? | | ?????????????????????????????????????????????????? | | ?????????????????????????????????????????????????? | | ?????????????????????????????????????????????????? | | ?????????????????????????????????????????????????? | | ?????????????????????????????????????????????????? | | ?????????????????????????????????????????????????? | | ?????????????????????????????????????????????????? | | | | | | | | | | | | | +----------------------------------------------------+ Best States ------------- Heat Dissipation 39 Energy Generation 19 Energy Capacity 310 Matter Stores 300 Matter Capacity 300 Sight Range 16 Terrain Scan Range 16 Terrain Scan Density 10 Additional Mass Support 12 Armor Coverage 150 Evasion (%) 55 Recoil Reduction 2 Item Schematics ----------------- None Robot Schematics ------------------ None Fabricated ------------ Nothing Repaired ---------- Spread Laser | 88% | -10/Materials Studied --------- None Alien Tech Used ----------------- None Achievements -------------- Follow The Leader Challenges ------------ None Game ------ Seed AntisysCooledAmplifier Manual? 0 Play Time 00:37:58 Cumulative 873.2 hours Start 2025.12.20 @ 02:57:50 End 2025.12.20 @ 03:34:59 Sessions 1 Manual Loads 0 Difficulty Rogue Special Mode None Game No. 562 Rogue 562 Adventurer 0 Explorer 0 Win Type - Total 1 Types 1/0/0/0/0/0/0/0/0/0 Lore% 80 Gallery% 72 Achievement% 54 Wizard Run 0 Options --------- Layout 1 ASCII 0 Keyboard 0 Movement Mouse Keybinds 0 Fullscreen 1 Font 20/SmallcapsGlow Map View 54x42 Zoom Use 0% Tactical HUD 1 Map Filters NONE Filters NONE Steam 1 RUN: bf2a2fdc-5bb0-4abb-a361-6f54c45ae7ec